bitfinex/quotes_SOLUSD_20260120
["timestamp","ask_amount","ask_price","bid_price","bid_amount"]
[1768924978573,2.90336437,128.05,128.0,14.40221129]
[1768924978772,14.39877086,128.06,127.98,6.58986329]
[1768924978773,2.90336437,128.03,127.98,6.58986329]
[1768924978980,2.90336437,128.02,127.98,6.58986329]
[1768924979192,2.90336437,128.02,127.96,17.82704345]
[1768924979193,2.90336437,128.02,127.97,14.40400612]
[1768924979571,2.90336437,128.01,127.96,25.64172572]
[1768924979785,27.33100658,128.06,127.98,7.8131395]
[1768924979984,19.7423562,128.07,128.01,6.58986329]
[1768924980196,6.58986329,128.03,127.97,0.78221261]
[1768924980585,6.58986329,128.04,127.99,6.58986329]
[1768924980790,6.58986329,128.06,128.0,6.58986329]
[1768924981587,6.58986329,128.05,128.0,6.58986329]
[1768924981787,9.49322766,128.05,128.0,6.58986329]
[1768924981986,2.90336437,128.04,127.99,7.38707084]
[1768924982301,2.90336437,128.04,127.99,15.22952919]
[1768924982485,2.90336437,128.04,128.0,6.58986329]
[1768924982686,2.90336437,128.04,127.96,23.70986329]
[1768924982894,2.90336437,128.01,127.94,6.17077127]
[1768924983083,9.49322766,127.98,127.92,6.58986329]
[1768924983284,2.90336437,127.95,127.9,7.416546]
[1768924983697,2.90336437,127.91,127.86,6.58986329]
[1768924983981,6.58986329,127.91,127.86,14.41077854]
[1768924984182,9.49322766,127.92,127.87,6.58986329]
[1768924984388,2.90336437,127.91,127.86,14.41087144]
[1768924985287,6.58986329,127.94,127.89,6.58986329]
[1768924985604,2.90336437,127.95,127.9,6.58986329]
[1768924985805,2.90336437,127.94,127.89,6.58986329]
[1768924986102,9.49322766,127.94,127.89,6.58986329]
[1768924986807,9.49322766,127.94,127.89,14.40905089]
[1768924987306,9.49322766,127.93,127.88,6.58986329]
[1768924987485,2.90336437,127.91,127.86,31.53066416]
[1768924987687,6.58986329,127.92,127.87,6.58986329]
[1768924987887,9.49322766,127.92,127.87,6.58986329]
[1768924988091,2.90336437,127.92,127.88,7.81946499]
[1768924988807,2.90336437,127.92,127.87,14.4100576]
[1768924989108,6.58986329,127.93,127.88,7.50819844]
[1768924989287,2.90336437,127.94,127.89,6.58986329]
[1768924989609,2.90336437,127.94,127.88,6.58986329]
[1768924989610,2.90336437,127.93,127.88,6.58986329]
[1768924989808,2.90336437,127.92,127.87,14.4100576]
[1768924990118,6.58986329,127.93,127.88,14.40950368]
[1768924990403,10.71953219,127.94,127.88,14.40950368]
[1768924990404,9.49322766,127.94,127.88,15.35819159]
[1768924990907,9.51107676,127.94,127.88,15.37604069]
[1768924991426,2.90336437,127.98,127.93,6.60771239]
[1768924991590,2.90336437,127.97,127.93,6.60771239]
[1768924991783,2.90336437,127.97,127.92,6.60771239]
[1768924991988,2.90336437,127.97,127.93,6.60771239]
[1768924992203,2.90336437,127.97,127.91,0.96360332]
[1768924992204,2.90336437,127.95,127.91,6.60771239]
[1768924992715,2.90336437,127.95,127.92,6.60771239]
[1768924993894,2.90336437,127.95,127.92,5.60771239]
[1768924995002,2.90336437,127.95,127.91,14.42569148]
[1768924995187,3.08868177,127.95,127.91,14.42569148]
[1768924995499,3.08868177,127.95,127.92,6.60771239]
[1768924995705,3.08868177,127.97,127.91,6.60771239]
[1768924995919,9.69639416,127.97,127.92,6.60771239]
[1768924996219,9.69639416,127.97,127.9,1.03564961]
[1768924996220,3.08868177,127.94,127.89,6.60771239]
[1768924996412,3.08868177,127.94,127.9,14.39597047]
[1768924996602,9.69639416,127.96,127.91,15.47506764]
[1768924996911,9.69639416,127.95,127.9,14.42605909]
[1768924997414,3.08868177,127.95,127.9,14.42605909]
[1768924997606,9.69639416,127.95,127.9,14.42605909]
[1768924997809,3.08868177,127.95,127.9,15.48938199]
[1768924997988,3.08868177,127.95,127.91,6.60771239]
[1768924999216,3.08868177,127.95,127.91,14.42543509]
[1768924999710,6.60771239,127.96,127.91,14.42543509]
[1768924999711,9.69639416,127.97,127.91,15.51579923]
[1768924999907,3.08868177,127.96,127.91,15.51579923]
[1768925000297,6.60771239,127.99,127.94,6.60771239]
[1768925000515,3.08868177,127.99,127.94,6.60771239]
[1768925000714,9.69639416,127.99,127.94,6.60771239]
[1768925001022,3.08868177,127.98,127.93,7.71136465]
[1768925001207,3.08868177,127.96,127.92,31.54471674]
[1768925001509,6.60771239,127.96,127.91,6.60771239]
[1768925001818,9.69639416,127.95,127.91,7.81772699]
[1768925001996,9.69639416,127.95,127.9,14.42605456]
[1768925004417,3.08868177,127.94,127.89,32.66341955]
[1768925004611,9.69639416,127.94,127.89,26.05570716]
[1768925004813,9.69639416,127.94,127.89,17.12]
[1768925004814,3.08868177,127.93,127.89,17.12]
[1768925005006,3.08868177,127.93,127.89,24.9388364]
[1768925005319,3.08868177,127.94,127.9,14.4261247]
[1768925006014,3.08868177,127.94,127.9,7.81841231]
[1768925006213,3.08868177,127.94,127.89,31.54664661]
[1768925007814,9.69639416,127.94,127.89,31.54664661]
[1768925008595,9.69639416,127.93,127.89,24.93893422]
[1768925008897,9.69639416,127.93,127.89,17.12]
[1768925010916,3.08868177,127.91,127.86,1.22842168]
[1768925011117,9.69639416,127.91,127.86,9.04917103]
[1768925011296,9.69639416,127.91,127.86,15.65688342]
[1768925011691,9.69639416,127.91,127.86,9.04917103]
[1768925012318,3.08868177,127.91,127.87,7.85940445]
[1768925012512,3.08868177,127.93,127.88,7.85940445]
[1768925012812,3.08868177,127.94,127.9,6.60771239]
[1768925013606,3.08868177,127.94,127.89,7.85940445]
[1768925014008,9.69639416,127.94,127.89,15.67832773]
[1768925014413,3.08868177,127.94,127.89,15.67832773]
[1768925014620,3.08868177,127.94,127.89,9.07061534]
[1768925014817,3.08868177,127.93,127.89,15.67832773]
[1768925015119,3.08868177,127.92,127.88,24.93945601]
[1768925015306,3.08868177,127.94,127.89,15.71225272]
[1768925015696,9.69639416,127.96,127.91,7.89331726]
[1768925015900,3.08868177,127.95,127.9,6.60771239]
[1768925016101,3.08868177,127.94,127.9,14.42585298]
[1768925016535,3.08868177,127.94,127.9,15.72250344]
[1768925016823,3.08868177,127.95,127.91,7.90436285]
[1768925017331,9.69639416,127.97,127.92,6.60771239]
[1768925017706,3.08868177,127.96,127.92,6.60771239]
[1768925018202,3.08868177,127.96,127.92,14.4247132]
[1768925018823,3.08868177,127.96,127.92,7.81700081]
[1768925019007,3.08868177,127.95,127.91,31.54540455]
[1768925019209,3.08868177,127.95,127.92,7.8173423]
[1768925020822,3.08868177,127.95,127.92,14.42505469]
[1768925021019,9.69639416,127.99,127.94,7.94729099]
[1768925021219,3.08868177,127.99,127.94,7.94729099]
[1768925021424,3.08868177,127.99,127.95,6.60771239]
[1768925021936,3.08868177,127.97,127.94,17.12]
[1768925022221,3.08868177,127.99,127.95,6.60771239]
[1768925022826,3.08868177,127.99,127.95,14.42285416]
[1768925023614,3.14748605,128.01,127.96,7.98828058]
[1768925023805,3.14748605,128.01,127.97,6.60771239]
[1768925024937,3.14748605,128.01,127.97,14.42166201]
[1768925025224,3.12530662,128.02,127.98,6.60771239]
[1768925025622,3.12530662,128.02,127.97,15.82202554]
[1768925025806,3.12530662,128.02,127.97,32.94202554]
[1768925026220,3.12530662,128.01,127.97,32.94202554]
[1768925027307,3.12530662,128.0,127.97,24.93394962]
[1768925028605,3.12530662,128.0,127.97,7.81394962]
[1768925029313,6.60771239,128.03,127.98,6.60771239]
[1768925029623,3.12530662,128.02,127.98,6.60771239]
[1768925030217,3.12530662,128.02,127.97,15.86955837]
[1768925031126,3.12530662,128.01,127.97,14.42166201]
[1768925032032,3.12530662,128.01,127.98,6.60771239]
[1768925032254,3.12530662,128.01,127.97,14.42166201]
[1768925033730,3.12530662,128.01,127.98,6.60771239]
[1768925034035,3.12530662,128.01,127.98,6.57771239]
[1768925035632,3.12530662,128.01,127.96,7.8146534]
[1768925035926,3.12530662,128.01,127.96,14.42236579]
[1768925035927,3.12530662,128.0,127.96,14.42236579]
[1768925038811,3.12530662,128.0,127.97,6.60771239]
[1768925039128,19.52584753,128.04,127.99,6.60771239]
[1768925039129,3.12530662,128.02,127.99,6.60771239]
[1768925040450,3.12530662,128.02,127.98,17.12]
[1768925040626,3.12530662,128.02,127.98,23.72771239]
[1768925041020,3.12530662,128.02,127.99,6.60771239]
[1768925041528,3.12530662,128.03,127.99,6.60771239]
[1768925041735,3.12530662,128.03,127.99,8.15908634]
[1768925042032,3.12530662,128.03,127.99,6.60771239]
[1768925042237,3.12530662,128.0,127.95,31.54295187]
[1768925042449,3.12530662,127.97,127.93,14.42417641]
[1768925042942,3.12530662,127.97,127.94,6.60771239]
[1768925043338,6.60771239,127.99,127.95,8.17498047]
[1768925043339,3.12530662,127.99,127.95,8.17498047]
[1768925043516,6.60771239,128.0,127.96,6.60771239]
[1768925043517,3.12530662,128.0,127.96,6.60771239]
[1768925044247,3.12530662,127.99,127.95,23.72771239]
[1768925045038,3.12530662,127.99,127.95,31.54303993]
[1768925045823,3.12530662,128.0,127.96,6.60771239]
[1768925046022,3.12530662,128.0,127.95,33.12583913]
[1768925046637,3.12530662,128.0,127.95,23.72771239]
[1768925046810,3.12530662,128.0,127.96,6.60771239]
[1768925047018,3.12530662,128.0,127.96,14.42244612]
[1768925047320,3.12530662,127.99,127.95,31.54302581]
[1768925047512,7.81225044,128.01,127.96,14.42264636]
[1768925047513,9.73301901,128.01,127.96,14.42264636]
[1768925047712,3.12530662,128.02,127.98,8.20568797]
[1768925048116,3.12530662,128.02,127.98,6.60771239]
[1768925049017,6.60771239,128.0,127.95,31.54300842]
[1768925049214,3.12530662,127.99,127.95,31.54300842]
[1768925050644,3.12530662,127.98,127.94,14.42358046]
[1768925050935,3.12530662,127.98,127.93,31.54418706]
[1768925051342,3.12530662,127.98,127.94,6.60771239]
[1768925052416,3.12530662,127.98,127.93,24.93647467]
[1768925052417,3.12530662,127.98,127.93,31.54418706]
[1768925052638,3.12530662,127.98,127.93,33.17860435]
[1768925053136,3.12530662,127.98,127.93,33.17309839]
[1768925053344,3.12530662,127.98,127.94,6.60220643]
[1768925053531,3.12530662,127.99,127.95,6.60220643]
[1768925054443,3.12530662,127.99,127.94,8.24366286]
[1768925055345,3.12530662,127.99,127.95,14.41761222]
[1768925056839,3.12530662,127.99,127.95,16.08642591]
[1768925057546,3.12530662,127.99,127.95,14.41761222]
[1768925059037,3.12530662,127.99,127.95,7.81540579]
[1768925059437,3.43340953,127.98,127.94,7.81591109]
[1768925059748,3.43340953,127.97,127.94,7.81591109]
[1768925063154,36.64903053,128.02,127.94,12.16458674]
[1768925063155,6.07453445,127.99,127.94,12.16458674]
[1768925063453,3.43340953,128.0,127.96,4.35487478]
[1768925063627,3.43340953,128.0,127.96,10.45595559]
[1768925064225,3.43340953,128.0,127.93,12.17129516]
[1768925064226,3.43340953,127.98,127.93,12.17129516]
[1768925064428,3.43340953,127.97,127.93,12.17129516]
[1768925064938,3.43340953,127.97,127.93,16.13323233]
[1768925065858,3.43340953,127.97,127.94,7.8161353]
[1768925067151,3.43340953,127.98,127.94,16.15112067]
[1768925067668,3.43340953,127.98,127.94,7.8161353]
[1768925067862,3.43340953,127.97,127.93,7.8165881]
[1768925068736,3.43340953,127.97,127.93,9.56028176]
[1768925069145,10.03647162,127.97,127.93,7.8165881]
[1768925069353,3.43340953,127.96,127.93,7.8165881]
[1768925069548,10.03647162,127.98,127.93,9.56606575]
[1768925069754,3.43340953,127.97,127.93,9.56606575]
[1768925070259,3.43340953,127.97,127.93,7.8165881]
[1768925071657,3.43340953,127.97,127.93,16.18049728]
[1768925071840,3.43340953,127.98,127.94,1.76084709]
[1768925072343,10.03647162,127.98,127.93,16.18596898]
[1768925072539,3.43340953,127.97,127.93,9.58290689]
[1768925073101,3.43340953,127.97,127.93,7.81647283]
[1768925073864,3.43340953,127.96,127.9,17.12]
[1768925074069,6.60306209,127.95,127.9,1.77195685]
[1768925074362,10.03647162,127.98,127.93,1.77195685]
[1768925074537,3.43340953,127.97,127.93,1.77195685]
[1768925075655,7.8127635,128.0,127.93,8.37501894]
[1768925075656,10.03647162,127.99,127.93,8.37501894]
[1768925075858,10.03647162,127.99,127.94,1.78281286]
[1768925076161,3.43340953,127.98,127.94,7.81600822]
[1768925076747,3.43340953,127.97,127.93,7.81669831]
[1768925078744,3.43340953,127.97,127.93,35.76033114]
[1768925081981,3.43340953,127.97,127.94,6.60306209]
[1768925082172,3.43340953,127.97,127.93,33.96169739]
[1768925082547,3.43340953,127.97,127.93,35.78059053]
[1768925084878,3.43340953,127.97,127.93,31.81844661]
[1768925088874,3.43340953,127.97,127.94,10.45682441]
[1768925090872,3.43340953,127.97,127.93,12.27628804]
[1768925091078,3.43340953,127.97,127.93,10.4573949]
[1768925091661,3.43340953,127.97,127.94,7.81607008]
[1768925091859,3.43340953,127.97,127.94,10.45698825]
[1768925092783,3.43340953,127.97,127.94,7.81607008]
[1768925093681,3.43340953,127.97,127.93,12.32737861]
[1768925093885,3.43340953,127.97,127.93,9.68646044]
[1768925096768,3.43340953,127.97,127.93,12.32737861]
[1768925100293,3.43340953,127.97,127.93,12.36463197]
[1768925101190,3.43340953,127.97,127.94,2.64091817]
[1768925101385,3.42985286,128.01,127.97,1.91117087]
[1768925101580,3.42985286,128.01,127.97,2.64091817]
[1768925101978,3.42985286,128.01,127.98,2.64091817]
[1768925102172,3.42985286,128.03,127.98,12.36578038]
[1768925102366,3.42985286,128.02,127.97,12.37000876]
[1768925102568,3.42985286,128.01,127.97,7.81405937]
[1768925102883,3.42985286,127.99,127.94,2.64091817]
[1768925103117,3.42985286,127.99,127.95,7.81548424]
[1768925104101,3.42985286,127.98,127.94,7.8161531]
[1768925104597,3.42985286,127.98,127.94,10.45707127]
[1768925105985,3.42985286,127.98,127.95,2.64091817]
[1768925106672,3.42985286,127.98,127.95,10.45645041]
[1768925106877,3.42985286,128.0,127.96,2.64091817]
[1768925107283,3.42985286,127.99,127.95,24.93553224]
[1768925107685,3.42985286,127.99,127.95,27.57645041]
[1768925108793,3.42985286,127.99,127.95,10.45645041]
[1768925110413,3.42985286,127.98,127.9,10.54081311]
[1768925110700,3.42985286,127.98,127.93,2.64091817]
[1768925110701,3.42985286,127.97,127.93,2.64091817]
[1768925110999,3.42985286,127.97,127.94,2.64091817]
[1768925111195,3.42985286,127.97,127.93,4.58527801]
[1768925112094,7.8131321,127.99,127.91,2.64091817]
[1768925112095,3.42985286,127.95,127.91,2.64091817]
[1768925112288,3.42985286,127.95,127.9,2.64091817]
[1768925112483,3.42985286,127.94,127.9,12.41076029]
[1768925113001,3.42985286,127.94,127.89,19.76235126]
[1768925113205,3.42985286,127.93,127.88,2.64235126]
[1768925113498,6.07220412,127.93,127.88,2.64235126]
[1768925113709,3.42985286,127.92,127.87,4.59362942]
[1768925114007,3.36985287,127.92,127.87,12.41402768]
[1768925114294,2.64235126,127.93,127.87,4.59362942]
[1768925114702,2.64235126,127.92,127.87,4.59362942]
[1768925114897,2.64235126,127.92,127.86,27.58337184]
[1768925115098,2.64235126,127.92,127.87,2.64235126]
[1768925115287,2.64235126,127.93,127.88,2.64235126]
[1768925115601,2.64235126,127.92,127.87,2.64235126]
[1768925115794,2.64235126,127.92,127.86,29.60473233]
[1768925115995,3.30130446,127.91,127.86,29.60473233]
[1768925116902,3.30130446,127.91,127.86,19.14136049]
[1768925117114,3.30130446,127.91,127.86,4.66371175]
[1768925117282,3.30130446,127.91,127.87,2.64235126]
[1768925118006,3.30130446,127.91,127.86,12.48461337]
[1768925118298,3.30130446,127.91,127.86,4.66371175]
[1768925118606,3.30130446,127.9,127.86,12.4976003]
[1768925119501,3.30130446,127.9,127.86,9.85524904]
[1768925119702,3.30130446,127.9,127.86,12.50136167]
[1768925119893,5.94365572,127.92,127.87,2.03804811]
[1768925120204,3.30130446,127.91,127.87,2.03804811]
[1768925120703,3.30130446,127.91,127.86,30.01594925]
[1768925120704,2.64235126,127.93,127.89,2.04178145]
[1768925120881,5.94365572,127.93,127.89,2.04178145]
[1768925121080,3.30130446,127.92,127.88,4.68413271]
[1768925121282,3.30130446,127.92,127.88,9.86122464]
[1768925121800,3.30130446,127.92,127.88,12.5035759]
[1768925122590,3.24130447,127.92,127.88,12.5035759]
[1768925122889,2.64235126,127.94,127.89,4.75147122]
[1768925123093,2.64235126,127.95,127.89,4.75147122]
[1768925123289,2.64235126,127.96,127.91,4.75507738]
[1768925123490,2.64235126,127.97,127.92,2.64235126]
[1768925123698,2.64235126,127.96,127.91,4.75507738]
[1768925124312,2.64235126,127.96,127.9,32.12020637]
[1768925124490,3.30130446,127.94,127.9,10.46095954]
[1768925125108,3.30130446,127.96,127.92,2.64235126]
[1768925125628,3.30130446,127.95,127.91,2.64235126]
[1768925125911,3.30130446,127.94,127.91,10.46018124]
[1768925129809,3.30130446,127.94,127.9,9.93820367]
[1768925130010,3.30130446,127.94,127.91,2.64235126]
[1768925130214,3.30130446,127.94,127.91,10.46026351]
[1768925130410,3.30130446,127.94,127.91,2.64235126]
[1768925131118,3.30130446,127.94,127.9,2.64235126]
[1768925131425,3.30130446,127.94,127.89,19.25566798]
[1768925131715,3.30130446,127.94,127.9,2.64235126]
[1768925131904,3.30130446,127.97,127.93,2.64235126]
[1768925132210,3.30130446,127.97,127.94,2.64235126]
[1768925132515,3.30130446,127.97,127.93,2.64235126]
[1768925132894,3.30130446,127.97,127.94,2.64235126]
[1768925134395,3.30130446,127.97,127.93,2.64235126]
[1768925135018,3.30130446,127.97,127.94,2.64235126]
[1768925136804,3.30130446,127.97,127.93,10.45892961]
[1768925137707,3.30130446,127.97,127.93,7.81657835]
[1768925137909,3.30130446,127.97,127.93,10.45892961]
[1768925138625,3.30130446,127.96,127.92,10.4594104]
[1768925140325,8.64539302,128.02,127.96,1.69158501]
[1768925140502,3.30130446,128.04,127.98,1.69158501]
[1768925140923,3.30130446,128.02,127.98,1.69158501]
[1768925141124,3.24130447,128.02,127.99,2.64235126]
[1768925141813,3.24130447,128.02,127.98,4.33393627]
[1768925142007,3.24130447,128.02,127.98,2.64235126]
[1768925142206,2.64235126,128.01,127.95,1.75417526]
[1768925142399,2.64235126,128.0,127.95,1.75417526]
[1768925142596,2.64235126,127.99,127.94,1.75673576]
[1768925142809,2.64235126,127.98,127.93,4.39908702]
[1768925143103,5.94365572,127.98,127.93,4.39908702]
[1768925143526,5.94365572,127.98,127.93,12.21579889]
[1768925143926,5.94365572,127.98,127.94,2.64235126]
[1768925143927,3.30130446,127.98,127.94,2.64235126]
[1768925144335,3.39610684,127.97,127.93,4.39908702]
[1768925144521,3.39610684,127.96,127.92,4.40659344]
[1768925144824,3.33610685,127.96,127.92,4.40659344]
[1768925145629,3.33610685,127.96,127.92,2.64235126]
[1768925146125,3.33610685,127.96,127.91,24.93778065]
[1768925146305,3.33610685,127.96,127.92,2.64235126]
[1768925146511,3.33610685,127.96,127.91,24.93778065]
[1768925147121,3.37124652,127.95,127.91,27.58013191]
[1768925147322,3.37124652,127.95,127.92,2.64235126]
[1768925148124,3.37124652,127.94,127.89,10.46155911]
[1768925148533,3.37124652,127.94,127.9,4.46603891]
[1768925148710,3.37124652,127.94,127.9,12.28453771]
[1768925150442,3.37124652,127.97,127.92,4.46320444]
[1768925150614,3.37124652,127.97,127.93,2.64235126]
[1768925151129,6.01359778,127.96,127.91,1.82085318]
[1768925151323,3.37124652,127.95,127.91,2.64235126]
[1768925151536,3.37124652,127.94,127.9,19.76235126]
[1768925151834,3.37124652,127.93,127.9,17.12]
[1768925152012,3.37124652,127.93,127.89,2.64235126]
[1768925152215,3.37124652,127.92,127.88,10.46189432]
[1768925152413,3.37124652,127.92,127.89,2.64235126]
[1768925153334,3.37124652,127.92,127.88,2.64235126]
[1768925154733,3.37124652,127.91,127.87,19.76235126]
[1768925155039,3.37124652,127.91,127.88,2.64235126]
[1768925156019,3.37124652,127.91,127.87,21.57904444]
[1768925156515,3.37124652,127.91,127.86,2.64235126]
[1768925156838,3.37124652,127.88,127.85,7.82119128]
[1768925157017,3.37124652,127.89,127.85,12.2782267]
[1768925157219,3.37124652,127.89,127.82,17.32]
[1768925157220,3.37124652,127.89,127.84,12.2780478]
[1768925157539,3.37124652,127.88,127.84,2.64235126]
[1768925158821,3.37124652,127.87,127.82,2.84235126]
[1768925159017,3.37124652,127.86,127.82,2.84235126]
[1768925159416,3.37124652,127.86,127.83,2.64235126]
[1768925160328,3.37124652,127.86,127.82,4.653154]
[1768925160516,3.37124652,127.85,127.82,0.2]
[1768925160838,3.37124652,127.85,127.82,2.84235126]
[1768925161436,3.37124652,127.85,127.82,0.2]
[1768925162146,3.37124652,127.85,127.82,2.84235126]
[1768925162441,3.37124652,127.87,127.82,2.84235126]
[1768925162843,3.37124652,127.87,127.82,4.65127952]
[1768925163182,3.37124652,127.86,127.82,4.65127952]
[1768925163639,3.37124652,127.86,127.82,0.2]
[1768925163838,3.37124652,127.85,127.82,0.2]
[1768925164432,3.37124652,127.87,127.82,4.64944785]
[1768925164624,3.37124652,127.87,127.83,1.80709659]
[1768925165137,3.37124652,127.87,127.82,12.47282004]
[1768925167951,3.37124652,127.88,127.84,7.82200144]
[1768925168154,3.37124652,127.88,127.84,12.26877993]
[1768925168455,3.37124652,127.89,127.85,4.44590907]
[1768925169052,3.37124652,127.89,127.85,12.26720938]
[1768925169358,3.37124652,127.89,127.85,1.80355781]
[1768925169847,3.37124652,127.89,127.85,9.62511163]
[1768925170232,3.37124652,127.89,127.85,12.26746289]
[1768925170942,3.37124652,127.89,127.85,1.80355781]
[1768925171134,3.37124652,127.89,127.85,9.62508094]
[1768925171551,3.37124652,127.89,127.85,1.80355781]
[1768925171946,3.37124652,127.89,127.85,12.26746915]
[1768925172143,3.37124652,127.94,127.88,4.44336026]
[1768925172461,3.37124652,127.94,127.89,4.44253009]
[1768925172462,3.37124652,127.93,127.89,4.44253009]
[1768925172761,3.37124652,127.92,127.88,1.80017883]
[1768925173133,3.37124652,127.92,127.88,9.61963377]
[1768925173364,3.37124652,127.92,127.88,12.26198503]
[1768925173770,3.37124652,127.94,127.89,4.44170947]
[1768925174281,3.37124652,127.91,127.85,21.35207677]
[1768925174574,3.37124652,127.9,127.86,17.14]
[1768925174740,3.37124652,127.9,127.86,27.6030142]
[1768925174934,3.37124652,127.9,127.87,7.82032243]
[1768925175656,3.37124652,127.9,127.86,29.40258334]
[1768925176156,3.37124652,127.9,127.86,17.14]
[1768925176367,3.37124652,127.9,127.86,24.96102205]
[1768925176546,3.37124652,127.9,127.86,27.60485746]
[1768925178866,3.37124652,127.9,127.86,19.78383541]
[1768925179366,3.64233758,127.95,127.89,4.43770717]
[1768925179655,3.64233758,127.89,127.84,3.48445209]
[1768925179856,6.28617299,127.89,127.84,11.30655348]
[1768925180165,3.64233758,127.87,127.83,20.62445209]
[1768925180340,3.64233758,127.87,127.83,28.44725938]
[1768925180760,3.64233758,127.87,127.83,23.2682875]
[1768925180953,3.64233758,127.87,127.83,20.62445209]
[1768925181553,3.64233758,127.87,127.84,3.48445209]
[1768925181743,3.64233758,127.88,127.84,3.48445209]
[1768925182737,6.28617299,127.88,127.84,3.48445209]
[1768925183060,3.64233758,127.87,127.82,3.68445209]
[1768925183232,3.64233758,127.87,127.83,3.48445209]
[1768925183439,6.28617299,127.88,127.83,3.48445209]
[1768925183640,3.64233758,127.88,127.84,3.48445209]
[1768925189254,3.64233758,127.91,127.86,3.48445209]
[1768925189462,3.64233758,127.91,127.85,19.78383541]
[1768925189463,3.64233758,127.91,127.87,6.1282875]
[1768925189764,3.64233758,127.9,127.85,3.48445209]
[1768925190058,3.64233758,127.89,127.85,3.48445209]
[1768925190646,3.64233758,127.89,127.84,31.09051308]
[1768925190854,3.64233758,127.88,127.84,20.62445209]
[1768925191053,3.64233758,127.87,127.84,17.14]
[1768925191252,3.64233758,127.87,127.83,3.48445209]
[1768925191968,3.64233758,127.84,127.82,0.2]
[1768925192277,7.81938783,127.89,127.82,0.2]
[1768925192278,3.64233758,127.85,127.83,2.64383541]
[1768925192445,3.64233758,127.85,127.82,2.84383541]
[1768925193045,3.64233758,127.85,127.82,6.3282875]
[1768925193266,3.64233758,127.86,127.83,2.64383541]
[1768925193459,3.64233758,127.86,127.82,0.2]
[1768925193767,3.64233758,127.86,127.83,2.64383541]
[1768925194749,3.64233758,127.85,127.83,2.64383541]
[1768925195057,7.821106,127.86,127.83,2.64383541]
[1768925195058,3.64233758,127.86,127.83,2.64383541]
[1768925195873,3.64233758,127.86,127.82,3.68445209]
[1768925196060,3.64233758,127.85,127.82,2.84383541]
[1768925196462,3.64233758,127.85,127.82,6.3282875]
[1768925196767,3.64233758,127.86,127.82,6.3282875]
[1768925197574,3.64233758,127.86,127.81,0.2]
[1768925197880,3.64233758,127.84,127.81,2.84383541]
[1768925199080,3.64233758,127.83,127.81,0.2]
[1768925200698,3.64233758,127.81,127.8,0.2]
[1768925200875,3.64233758,127.81,127.76,0.2]
[1768925200876,3.64233758,127.8,127.75,8.29767562]
[1768925201172,6.28617299,127.76,127.75,0.2]
[1768925201775,6.28617299,127.76,127.72,3.48445209]
[1768925202975,6.28617299,127.76,127.72,6.1282875]
[1768925203164,3.64233758,127.76,127.72,6.1282875]
[1768925203672,3.74396728,127.79,127.75,6.21298986]
[1768925203870,3.74396728,127.79,127.76,2.64383541]
[1768925204357,3.74396728,127.82,127.77,2.64383541]
[1768925204568,3.74396728,127.84,127.81,2.64383541]
[1768925205179,2.64383541,127.88,127.83,6.31837771]
[1768925205380,3.48632243,127.91,127.87,2.64383541]
[1768925205564,3.48632243,127.93,127.89,2.64383541]
[1768925205881,3.48632243,127.91,127.88,2.64383541]
[1768925206787,32.9437278,127.95,127.88,2.64383541]
[1768925206788,6.13015784,127.95,127.9,2.64383541]
[1768925206974,2.64383541,128.0,127.91,3.6745423]
[1768925206975,10.09131104,127.97,127.91,3.6745423]
[1768925207283,3.48632243,127.93,127.89,6.60498861]
[1768925207485,3.48632243,127.93,127.87,28.63473276]
[1768925207686,3.48632243,127.92,127.88,6.60498861]
[1768925207867,3.48632243,127.91,127.87,6.60498861]
[1768925208587,3.48632243,127.89,127.86,6.60498861]
[1768925208887,3.48632243,127.89,127.87,6.60498861]
[1768925209480,3.48632243,127.91,127.88,6.60498861]
[1768925210286,14.42201285,127.93,127.9,6.60498861]
[1768925210287,3.48632243,127.93,127.9,6.60498861]
[1768925210869,3.48632243,127.95,127.92,6.60498861]
[1768925211087,3.48632243,127.97,127.93,6.60498861]
[1768925211283,0.1,128.02,127.91,3.6745423]
[1768925211284,3.48632243,127.99,127.96,6.60498861]
[1768925211487,3.48632243,127.99,127.98,6.60498861]
[1768925211880,6.70498861,128.02,127.98,6.60498861]
[1768925212083,3.48632243,128.01,127.98,6.60498861]
[1768925212410,3.48632243,128.01,128.0,6.60498861]
[1768925213982,0.1,128.02,128.0,6.60498861]
[1768925214490,0.1,128.02,128.01,6.60498861]
[1768925215071,0.1,128.02,128.0,6.60498861]
[1768925215892,0.1,128.02,128.01,6.60498861]
[1768925216473,0.1,128.02,128.0,6.60498861]
[1768925217888,11.29591057,128.05,128.01,6.60498861]
[1768925218284,3.48632243,128.04,128.01,6.60498861]
[1768925218870,3.48632243,128.04,127.98,3.6745423]
[1768925219075,10.09131104,128.04,127.99,6.60498861]
[1768925219382,3.48632243,128.03,127.99,6.60498861]
[1768925219776,3.48632243,128.03,128.0,6.60498861]
[1768925220097,11.2970314,128.03,128.0,6.60498861]
[1768925220393,3.48632243,128.02,128.0,6.60498861]
[1768925220769,3.48632243,128.02,127.98,3.6745423]
[1768925220770,3.48632243,128.02,127.98,6.60498861]
[1768925220966,3.48632243,128.02,127.99,6.60498861]
[1768925221385,3.48632243,128.06,128.01,6.60498861]